[Event "ONJK-C 2019"]
[Site "Borne"]
[Date "2019.08.06"]
[Round "3.12"]
[White "Den Heijer, Rolinde"]
[Black "Molanus, Eva"]
[Result "1-0"]
[ECO "B76"]
[WhiteElo "1471"]
[BlackElo "1281"]
[Annotator "NA"]
[PlyCount "71"]
[EventDate "2019.08.05"]
[EventType "swiss"]
[EventCountry "NED"]
[SourceTitle "playchess.com"]
[Source "ChessBase"]
[SourceQuality "1"]
[TimeControl "5400+30"]

1. e4 {[%emt 0:00:00]} c5 {[%emt 0:00:00]} 2. Nf3 {[%emt 0:00:00]} d6 {[%emt 0:00:00]} 3. d4 {[%emt 0:00:00]} cxd4 {[%emt 0:00:00]} 4. Nxd4 {[%emt 0:00:00]} Nf6 {[%emt 0:00:00]} 5. Nc3 {[%emt 0:00:00]} g6 {[%emt 0:00:03]} 6. Be3 {[%emt 0:00:00]} Bg7 {[%emt 0:00:15]} 7. f3 {[%emt 0:00:35]} Nc6 {[%emt 0:00:15]} 8. Qd2 {[%emt 0:00:31]} O-O {[%emt 0:00:21]} 9. O-O-O {[%emt 0:00:21]} Bd7 {[%emt 0:06:26]} 10. Bh6 {[%emt 0:00:55]} Rc8 {[%emt 0:10:58]} 11. h4 {[%emt 0:06:16]} Qb6 {[%emt 0:06:21]} 12. Nb3 {[%emt 0:01:44]} Ne5 {[%emt 0:02:56]} 13. Bxg7 {[%emt 0:04:01]} Kxg7 {[%emt 0:01:02]} 14. Be2 {[%emt 0:06:34]} h5 {[%emt 0:05:16]} 15. Kb1 {[%emt 0:12:35]} Rfd8 {[%emt 0:10:10]} 16. Nd5 {[%emt 0:06:58]} Nxd5 {[%emt 0:02:48]} 17. exd5 {[%emt 0:01:28]} Bf5 {[%emt 0:01:35]} 18. Nd4 {[%emt 0:06:01]} Nc4 {[%emt 0:10:10]} 19. Nxf5+ {[%emt 0:01:59]} gxf5 {[%emt 0:03:46]} 20. Bxc4 {[%emt 0:00:53]} Rxc4 {[%emt 0:00:21]} 21. Qg5+ {[%emt 0:01:34]} Kf8 {[%emt 0:00:47]} 22. Qxh5 {[%emt 0:00:58]} e5 {[%emt 0:02:30]} 23. Qxf5 {[%emt 0:02:39]} Rdc8 {[%emt 0:03:02]} 24. Rd2 {[%emt 0:02:40]} Qe3 {[%emt 0:02:17]} 25. Rhd1 {[%emt 0:00:54]} R8c7 {[%emt 0:06:46]} 26. Qf6 {[%emt 0:03:19]} Qc5 {[%emt 0:03:10]} 27. Rc1 {[%emt 0:01:45]} Qe3 {[%emt 0:00:53]} 28. Rcd1 {[%emt 0:04:37]} Qc5 {[%emt 0:00:40]} 29. c3 {[%emt 0:02:37]} Qb6 {[%emt 0:02:54]} 30. h5 {[%emt 0:03:06]} Rxc3 {[%emt 0:03:04]} 31. h6 {[%emt 0:00:54]} Rc1+ {[%emt 0:03:21]} 32. Rxc1 {[%emt 0:01:03]} Rxc1+ {[%emt 0:00:10]} 33. Kxc1 {[%emt 0:00:04]} Qg1+ {[%emt 0:00:45]} 34. Rd1 {[%emt 0:00:57]} Qe3+ {[%emt 0:00:17]} 35. Kb1 {[%emt 0:00:19]} Qe2 {[%emt 0:00:29]} 36. Qd8# {[%emt 0:01:01]} 1-0

[Event "ONJK-C 2019"]
[Site "Borne"]
[Date "2019.08.06"]
[Round "3.13"]
[White "Buijnsters, Floris"]
[Black "Wierenga, Jael"]
[Result "0-1"]
[ECO "C02"]
[WhiteElo "1268"]
[BlackElo "1469"]
[Annotator "NA"]
[PlyCount "76"]
[EventDate "2019.08.05"]
[EventType "swiss"]
[EventCountry "NED"]
[SourceTitle "playchess.com"]
[Source "ChessBase"]
[SourceQuality "1"]
[TimeControl "5400+30"]

1. e4 {[%emt 0:00:00]} e6 {[%emt 0:00:00]} 2. d4 {[%emt 0:00:00]} d5 {[%emt 0:00:00]} 3. e5 {[%emt 0:00:00]} c5 {[%emt 0:00:00]} 4. c3 {[%emt 0:00:00]} Nc6 {[%emt 0:00:00]} 5. Nf3 {[%emt 0:00:04]} Bd7 {[%emt 0:00:00]} 6. Nbd2 {[%emt 0:01:07]} f6 {[%emt 0:00:10]} 7. Qe2 {[%emt 0:03:43]} Qb6 {[%emt 0:01:06]} 8. a3 {[%emt 0:00:31]} cxd4 {[%emt 0:00:14]} 9. cxd4 {[%emt 0:01:22]} Nxd4 {[%emt 0:00:26]} 10. Nxd4 {[%emt 0:00:17]} Qxd4 {[%emt 0:00:08]} 11. Nf3 {[%emt 0:00:24]} Qb6 {[%emt 0:00:43]} 12. Be3 {[%emt 0:00:25]} Bc5 {[%emt 0:00:23]} 13. Bxc5 {[%emt 0:01:21]} Qxc5 {[%emt 0:00:06]} 14. Qd2 {[%emt 0:00:30]} fxe5 {[%emt 0:00:58]} 15. Nxe5 {[%emt 0:00:34]} Nf6 {[%emt 0:00:09]} 16. Nxd7 {[%emt 0:01:14]} Nxd7 {[%emt 0:02:50]} 17. Rc1 {[%emt 0:00:32]} Qd6 {[%emt 0:00:35]} 18. Qg5 {[%emt 0:01:00]} O-O {[%emt 0:01:26]} 19. Bd3 {[%emt 0:00:07]} Qb6 {[%emt 0:01:13]} 20. O-O {[%emt 0:00:30]} Nf6 {[%emt 0:02:02]} 21. Rc2 {[%emt 0:01:14]} Rf7 {[%emt 0:00:32]} 22. Rfc1 {[%emt 0:01:07]} Raf8 {[%emt 0:00:20]} 23. Rf1 {[%emt 0:04:01]} Qd6 {[%emt 0:02:34]} 24. Qh4 {[%emt 0:01:31]} e5 {[%emt 0:00:41]} 25. f3 {[%emt 0:03:00]} g6 {[%emt 0:01:22]} 26. Re2 {[%emt 0:01:26]} Kg7 {[%emt 0:00:29]} 27. Qg3 {[%emt 0:02:16]} Re8 {[%emt 0:00:50]} 28. Rfe1 {[%emt 0:00:53]} Rfe7 {[%emt 0:00:39]} 29. Qg5 {[%emt 0:00:53]} a6 {[%emt 0:02:59]} 30. b4 {[%emt 0:01:02]} b5 {[%emt 0:00:00]} 31. g4 {[%emt 0:00:38]} d4 {[%emt 0:01:06]} 32. h4 {[%emt 0:00:28]} Nd5 {[%emt 0:06:49]} 33. h5 {[%emt 0:01:31]} Nf4 {[%emt 0:00:32]} 34. Rh2 {[%emt 0:03:55]} Nxd3 {[%emt 0:00:27]} 35. Re4 {[%emt 0:01:23]} Rf7 {[%emt 0:00:30]} 36. hxg6 {[%emt 0:00:31]} Qxg6 {[%emt 0:00:19]} 37. Qd2 {[%emt 0:00:46]} Rxf3 {[%emt 0:01:28]} 38. Qe2 {[%emt 0:01:46]} Ref8 {[%emt 0:00:00]} 0-1

[Event "ONJK-C 2019"]
[Site "Borne"]
[Date "2019.08.06"]
[Round "3.14"]
[White "Van Doren, Frodo"]
[Black "Van der Tuin, Tristan"]
[Result "1-0"]
[ECO "C02"]
[WhiteElo "1433"]
[BlackElo "1238"]
[Annotator "NA"]
[PlyCount "113"]
[EventDate "2019.08.05"]
[EventType "swiss"]
[EventCountry "NED"]
[SourceTitle "playchess.com"]
[Source "ChessBase"]
[SourceQuality "1"]
[TimeControl "5400+30"]

1. e4 {[%emt 0:00:00]} e6 {[%emt 0:00:00]} 2. d4 {[%emt 0:00:00]} d5 {[%emt 0:00:00]} 3. e5 {[%emt 0:00:00]} c5 {[%emt 0:00:00]} 4. c3 {[%emt 0:00:00]} Nc6 {[%emt 0:00:00]} 5. Nf3 {[%emt 0:00:00]} Qb6 {[%emt 0:00:09]} 6. a3 {[%emt 0:00:40]} Bd7 {[%emt 0:00:15]} 7. b4 {[%emt 0:03:40]} c4 {[%emt 0:00:26]} 8. Be2 {[%emt 0:01:42]} f6 {[%emt 0:01:05]} 9. Bf4 {[%emt 0:02:20]} Be7 {[%emt 0:00:41]} 10. O-O {[%emt 0:01:12]} Bd8 {[%emt 0:03:13]} 11. a4 {[%emt 0:08:35]} a5 {[%emt 0:00:35]} 12. b5 {[%emt 0:00:45]} Na7 {[%emt 0:00:45]} 13. Bc1 {[%emt 0:01:06]} fxe5 {[%emt 0:02:22]} 14. Nxe5 {[%emt 0:00:40]} Qd6 {[%emt 0:01:13]} 15. Ba3 {[%emt 0:00:25]} Qc7 {[%emt 0:01:05]} 16. Qc2 {[%emt 0:01:18]} Nf6 {[%emt 0:00:26]} 17. Nd2 {[%emt 0:01:15]} Nc8 {[%emt 0:00:56]} 18. Qd1 {[%emt 0:02:05]} Nd6 {[%emt 0:00:18]} 19. Bh5+ {[%emt 0:03:00]} Ke7 {[%emt 0:01:49]} 20. Re1 {[%emt 0:05:03]} g6 {[%emt 0:00:28]} 21. Bxg6 {[%emt 0:01:39]} Rg8 {[%emt 0:00:36]} 22. Bxh7 {[%emt 0:08:56]} Nxh7 {[%emt 0:01:04]} 23. Bxd6+ {[%emt 0:01:00]} Qxd6 {[%emt 0:01:02]} 24. Qh5 {[%emt 0:00:19]} Ng5 {[%emt 0:00:45]} 25. f4 {[%emt 0:02:23]} Be8 {[%emt 0:00:05]} 26. Qh4 {[%emt 0:00:36]} Kf8 {[%emt 0:00:55]} 27. Qh6+ {[%emt 0:00:42]} Rg7 {[%emt 0:00:25]} 28. fxg5 {[%emt 0:00:12]} Bxg5 {[%emt 0:00:05]} 29. Rf1+ {[%emt 0:00:20]} Kg8 {[%emt 0:00:42]} 30. Qh3 {[%emt 0:00:53]} Bxd2 {[%emt 0:00:35]} 31. Ra2 {[%emt 0:01:05]} Bg5 {[%emt 0:01:23]} 32. Raf2 {[%emt 0:00:46]} Qe7 {[%emt 0:01:03]} 33. Rf8+ {[%emt 0:02:50]} Qxf8 {[%emt 0:00:13]} 34. Rxf8+ {[%emt 0:00:06]} Kxf8 {[%emt 0:00:03]} 35. Qh8+ {[%emt 0:00:40]} Rg8 {[%emt 0:00:36]} 36. Qh7 {[%emt 0:01:03]} Bf4 {[%emt 0:02:16]} 37. Qxb7 {[%emt 0:01:21]} Rd8 {[%emt 0:00:49]} 38. Qb6 {[%emt 0:11:23]} Rc8 {[%emt 0:01:44]} 39. Qxe6 {[%emt 0:00:17]} Rc7 {[%emt 0:01:03]} 40. Qf6+ {[%emt 0:10:01]} Bf7 {[%emt 0:01:02]} 41. Qd8+ {[%emt 0:03:19]} Kg7 {[%emt 0:01:29]} 42. Qxc7 {[%emt 0:00:11]} Bxe5 {[%emt 0:00:28]} 43. Qxe5+ {[%emt 0:00:16]} Kg6 {[%emt 0:00:17]} 44. Qd6+ {[%emt 0:00:22]} Kg7 {[%emt 0:00:37]} 45. Qc7 {[%emt 0:00:21]} Kf6 {[%emt 0:00:59]} 46. Qxa5 {[%emt 0:01:09]} Kf5 {[%emt 0:00:15]} 47. Qc7 {[%emt 0:00:24]} Kg6 {[%emt 0:02:06]} 48. b6 {[%emt 0:00:36]} Re8 {[%emt 0:00:52]} 49. b7 {[%emt 0:00:39]} Re1+ {[%emt 0:00:29]} 50. Kf2 {[%emt 0:00:05]} Rc1 {[%emt 0:00:10]} 51. Qg3+ {[%emt 0:00:08]} Kf5 {[%emt 0:00:34]} 52. Qf3+ {[%emt 0:00:25]} Kg6 {[%emt 0:00:43]} 53. b8=Q {[%emt 0:00:11]} Rc2+ {[%emt 0:00:17]} 54. Kg3 {[%emt 0:00:09]} Be6 {[%emt 0:00:40]} 55. Qe8+ {[%emt 0:00:14]} Kg7 {[%emt 0:00:19]} 56. Qff8+ {[%emt 0:00:31]} Kh7 {[%emt 0:00:33]} 57. Qh5# {[%emt 0:00:42]} 1-0

[Event "ONJK-C 2019"]
[Site "Borne"]
[Date "2019.08.07"]
[Round "4.1"]
[White "Boeren, Jurriaan"]
[Black "Klugstedt, Vincent"]
[Result "0-1"]
[ECO "B34"]
[WhiteElo "1522"]
[BlackElo "1850"]
[Annotator "NA"]
[PlyCount "102"]
[EventDate "2019.08.05"]
[EventType "swiss"]
[EventCountry "NED"]
[SourceTitle "playchess.com"]
[Source "ChessBase"]
[SourceQuality "1"]
[TimeControl "5400+30"]

1. e4 {[%emt 0:00:00]} c5 {[%emt 0:00:00]} 2. Nf3 {[%emt 0:00:00]} Nc6 {[%emt 0:00:00]} 3. d4 {[%emt 0:00:00]} cxd4 {[%emt 0:00:00]} 4. Nxd4 {[%emt 0:00:00]} g6 {[%emt 0:00:04]} 5. Nxc6 {[%emt 0:00:11]} bxc6 {[%emt 0:00:47]} 6. Qd4 {[%emt 0:01:20]} Nf6 {[%emt 0:04:32]} 7. e5 {[%emt 0:00:20]} Nh5 {[%emt 0:02:09]} 8. g4 {[%emt 0:10:16]} Ng7 {[%emt 0:00:44]} 9. Bc4 {[%emt 0:00:45]} d5 {[%emt 0:04:14]} 10. exd6 {[%emt 0:00:22]} Qxd6 {[%emt 0:00:30]} 11. Qxd6 {[%emt 0:00:30]} exd6 {[%emt 0:00:07]} 12. h3 {[%emt 0:00:25]} d5 {[%emt 0:01:35]} 13. Be2 {[%emt 0:00:35]} Bd6 {[%emt 0:00:25]} 14. Nd2 {[%emt 0:06:52]} h5 {[%emt 0:02:57]} 15. Rg1 {[%emt 0:02:54]} hxg4 {[%emt 0:04:16]} 16. Bxg4 {[%emt 0:00:30]} Bxg4 {[%emt 0:01:11]} 17. hxg4 {[%emt 0:00:09]} Kd7 {[%emt 0:00:58]} 18. Nb3 {[%emt 0:01:33]} Rae8+ {[%emt 0:00:42]} 19. Be3 {[%emt 0:05:21]} Bf4 {[%emt 0:03:13]} 20. Kd2 {[%emt 0:01:07]} Rh2 {[%emt 0:00:48]} 21. Kd3 {[%emt 0:02:03]} Bxe3 {[%emt 0:00:27]} 22. fxe3 {[%emt 0:00:05]} Ne6 {[%emt 0:00:46]} 23. Raf1 {[%emt 0:04:33]} Ng5 {[%emt 0:01:50]} 24. Nc5+ {[%emt 0:00:45]} Kc7 {[%emt 0:01:14]} 25. a3 {[%emt 0:02:06]} Rh3 {[%emt 0:00:15]} 26. Ke2 {[%emt 0:02:30]} Rhxe3+ {[%emt 0:03:05]} 27. Kd1 {[%emt 0:00:11]} Rh3 {[%emt 0:04:55]} 28. Re1 {[%emt 0:03:03]} Rxe1+ {[%emt 0:02:25]} 29. Rxe1 {[%emt 0:00:07]} Rg3 {[%emt 0:00:08]} 30. Nd3 {[%emt 0:01:17]} Rxg4 {[%emt 0:00:55]} 31. Re7+ {[%emt 0:00:29]} Kd6 {[%emt 0:03:01]} 32. Rxa7 {[%emt 0:00:16]} Rg1+ {[%emt 0:01:16]} 33. Ke2 {[%emt 0:00:22]} Rg2+ {[%emt 0:00:29]} 34. Kd1 {[%emt 0:00:31]} f5 {[%emt 0:02:09]} 35. a4 {[%emt 0:00:12]} Ne6 {[%emt 0:01:44]} 36. b4 {[%emt 0:01:24]} Nc7 {[%emt 0:02:15]} 37. a5 {[%emt 0:02:15]} g5 {[%emt 0:01:55]} 38. Rb7 {[%emt 0:02:40]} f4 {[%emt 0:06:07]} 39. Rb8 {[%emt 0:00:37]} f3 {[%emt 0:01:00]} 40. Rf8 {[%emt 0:00:34]} g4 {[%emt 0:01:54]} 41. Rf6+ {[%emt 0:03:26]} Kd7 {[%emt 0:08:31]} 42. Rf7+ {[%emt 0:09:05]} Kd6 {[%emt 0:01:04]} 43. Rf6+ {[%emt 0:00:37]} Kd7 {[%emt 0:01:41]} 44. Rf7+ {[%emt 0:00:16]} Kd8 {[%emt 0:02:46]} 45. Rf8+ {[%emt 0:01:27]} Ke7 {[%emt 0:01:13]} 46. Rf4 {[%emt 0:01:53]} Ne6 {[%emt 0:01:16]} 47. Rf5 {[%emt 0:01:16]} Nd4 {[%emt 0:01:03]} 48. a6 {[%emt 0:02:37]} Nxf5 {[%emt 0:01:28]} 49. a7 {[%emt 0:00:46]} Rg1+ {[%emt 0:00:15]} 50. Kd2 {[%emt 0:00:23]} Rg2+ {[%emt 0:00:28]} 51. Kd1 {[%emt 0:01:54]} Nd6 {[%emt 0:00:14]} 0-1

[Event "ONJK-C 2019"]
[Site "Borne"]
[Date "2019.08.07"]
[Round "4.2"]
[White "De Jong, Mats"]
[Black "De Rycke, Tyani"]
[Result "0-1"]
[ECO "D35"]
[WhiteElo "1356"]
[BlackElo "1787"]
[Annotator "NA"]
[PlyCount "48"]
[EventDate "2019.08.05"]
[EventType "swiss"]
[EventCountry "NED"]
[SourceTitle "playchess.com"]
[Source "ChessBase"]
[SourceQuality "1"]
[TimeControl "5400+30"]

1. d4 {[%emt 0:00:00]} d5 {[%emt 0:00:00]} 2. c4 {[%emt 0:00:00]} e6 {[%emt 0:00:00]} 3. Nc3 {[%emt 0:00:00]} Nf6 {[%emt 0:00:00]} 4. Bf4 {[%emt 0:00:01]} dxc4 {[%emt 0:00:00]} 5. e3 {[%emt 0:02:47]} Nd5 {[%emt 0:00:00]} 6. Bxc4 {[%emt 0:01:53]} Nxf4 {[%emt 0:00:03]} 7. exf4 {[%emt 0:00:15]} Bd6 {[%emt 0:00:27]} 8. Nge2 {[%emt 0:01:17]} Qf6 {[%emt 0:02:05]} 9. Qd2 {[%emt 0:02:44]} Nd7 {[%emt 0:00:57]} 10. O-O {[%emt 0:04:31]} O-O {[%emt 0:00:22]} 11. Ne4 {[%emt 0:02:23]} Qe7 {[%emt 0:00:33]} 12. Nxd6 {[%emt 0:01:27]} Qxd6 {[%emt 0:00:13]} 13. Rfe1 {[%emt 0:03:48]} Nf6 {[%emt 0:01:16]} 14. Nc3 {[%emt 0:02:53]} b6 {[%emt 0:00:43]} 15. Rad1 {[%emt 0:03:51]} Bb7 {[%emt 0:00:18]} 16. Re5 {[%emt 0:02:47]} Bxg2 {[%emt 0:08:27]} 17. Kxg2 {[%emt 0:19:41]} Qc6+ {[%emt 0:00:09]} 18. Bd5 {[%emt 0:01:50]} Nxd5 {[%emt 0:01:41]} 19. Nxd5 {[%emt 0:00:16]} exd5 {[%emt 0:00:30]} 20. Rc1 {[%emt 0:00:47]} Qd6 {[%emt 0:01:56]} 21. Rc3 {[%emt 0:02:59]} f6 {[%emt 0:03:34]} 22. Rh5 {[%emt 0:01:11]} f5 {[%emt 0:01:37]} 23. Re3 {[%emt 0:01:15]} h6 {[%emt 0:10:26]} 24. Re5 {[%emt 0:00:44]} Qg6+ {[%emt 0:01:12]} 0-1

[Event "ONJK-C 2019"]
[Site "Borne"]
[Date "2019.08.07"]
[Round "4.3"]
[White "Kumar, Prajit Sai"]
[Black "Malfliet, Alexander"]
[Result "1/2-1/2"]
[ECO "D12"]
[WhiteElo "1574"]
[BlackElo "1491"]
[Annotator "NA"]
[PlyCount "41"]
[EventDate "2019.08.05"]
[EventType "swiss"]
[EventCountry "NED"]
[SourceTitle "playchess.com"]
[Source "ChessBase"]
[SourceQuality "1"]
[TimeControl "5400+30"]

1. d4 {[%emt 0:00:00]} d5 {[%emt 0:00:00]} 2. c4 {[%emt 0:00:00]} e6 {[%emt 0:00:00]} 3. cxd5 {[%emt 0:00:00]} exd5 {[%emt 0:00:00]} 4. Nf3 {[%emt 0:00:03]} Nf6 {[%emt 0:00:00]} 5. Nc3 {[%emt 0:00:11]} c6 {[%emt 0:01:41]} 6. e3 {[%emt 0:01:10]} Bf5 {[%emt 0:03:45]} 7. Bd3 {[%emt 0:01:26]} Bg6 {[%emt 0:02:13]} 8. Qc2 {[%emt 0:06:30]} Bd6 {[%emt 0:03:04]} 9. Bd2 {[%emt 0:01:52]} O-O {[%emt 0:01:17]} 10. O-O {[%emt 0:01:04]} Qc7 {[%emt 0:00:22]} 11. Rac1 {[%emt 0:00:46]} Nbd7 {[%emt 0:02:16]} 12. Bxg6 {[%emt 0:02:40]} hxg6 {[%emt 0:00:08]} 13. Nb5 {[%emt 0:02:08]} Qb8 {[%emt 0:00:28]} 14. Nxd6 {[%emt 0:00:40]} Qxd6 {[%emt 0:00:08]} 15. a3 {[%emt 0:00:50]} a5 {[%emt 0:02:29]} 16. Bc3 {[%emt 0:02:45]} Ne4 {[%emt 0:01:18]} 17. Nd2 {[%emt 0:00:17]} Nxd2 {[%emt 0:01:18]} 18. Qxd2 {[%emt 0:00:28]} Qc7 {[%emt 0:02:16]} 19. f3 {[%emt 0:00:46]} Nf6 {[%emt 0:00:17]} 20. Rfe1 {[%emt 0:01:30]} Rfe8 {[%emt 0:04:27]} 21. Qd3 {[%emt 0:14:04]} 1/2-1/2

[Event "ONJK-C 2019"]
[Site "Borne"]
[Date "2019.08.07"]
[Round "4.4"]
[White "Goudriaan, Rafael"]
[Black "Tiggelman, Vincent"]
[Result "1-0"]
[ECO "B11"]
[WhiteElo "1719"]
[BlackElo "1358"]
[Annotator "NA"]
[PlyCount "82"]
[EventDate "2019.08.05"]
[EventType "swiss"]
[EventCountry "NED"]
[SourceTitle "playchess.com"]
[Source "ChessBase"]
[SourceQuality "1"]
[TimeControl "5400+30"]

1. e4 {[%emt 0:00:00]} c6 {[%emt 0:00:00]} 2. Nf3 {[%emt 0:00:00]} d5 {[%emt 0:00:00]} 3. Nc3 {[%emt 0:00:00]} Bg4 {[%emt 0:00:00]} 4. exd5 {[%emt 0:00:11]} Bxf3 {[%emt 0:00:02]} 5. Qxf3 {[%emt 0:00:11]} Nf6 {[%emt 0:06:23]} 6. dxc6 {[%emt 0:00:17]} Nxc6 {[%emt 0:00:04]} 7. Bb5 {[%emt 0:00:19]} Rc8 {[%emt 0:06:24]} 8. d3 {[%emt 0:00:40]} e6 {[%emt 0:01:18]} 9. Bg5 {[%emt 0:00:14]} Be7 {[%emt 0:00:18]} 10. O-O {[%emt 0:00:37]} O-O {[%emt 0:00:20]} 11. Rad1 {[%emt 0:00:26]} Qb6 {[%emt 0:01:56]} 12. Be3 {[%emt 0:02:35]} Bc5 {[%emt 0:03:36]} 13. Bxc5 {[%emt 0:03:08]} Qxc5 {[%emt 0:01:09]} 14. Bxc6 {[%emt 0:01:08]} Qxc6 {[%emt 0:02:10]} 15. Qxc6 {[%emt 0:00:08]} Rxc6 {[%emt 0:00:04]} 16. Rfe1 {[%emt 0:01:08]} Rd8 {[%emt 0:00:38]} 17. Re5 {[%emt 0:01:17]} Rb6 {[%emt 0:01:38]} 18. Rb5 {[%emt 0:03:57]} Rdd6 {[%emt 0:01:48]} 19. Rxb6 {[%emt 0:02:11]} Rxb6 {[%emt 0:00:24]} 20. Na4 {[%emt 0:00:35]} Ra6 {[%emt 0:03:28]} 21. Nc3 {[%emt 0:02:08]} Rb6 {[%emt 0:03:19]} 22. Rb1 {[%emt 0:00:07]} Nd7 {[%emt 0:11:53]} 23. Ne4 {[%emt 0:00:47]} Ne5 {[%emt 0:00:57]} 24. Nc5 {[%emt 0:02:22]} Rb5 {[%emt 0:01:49]} 25. Nb3 {[%emt 0:02:05]} Nc6 {[%emt 0:00:26]} 26. c3 {[%emt 0:00:25]} a5 {[%emt 0:01:22]} 27. d4 {[%emt 0:04:43]} b6 {[%emt 0:02:14]} 28. Nd2 {[%emt 0:00:39]} a4 {[%emt 0:00:34]} 29. c4 {[%emt 0:01:36]} Ra5 {[%emt 0:02:35]} 30. Nf3 {[%emt 0:01:10]} g5 {[%emt 0:01:36]} 31. h3 {[%emt 0:01:16]} h5 {[%emt 0:00:52]} 32. Rd1 {[%emt 0:02:25]} Nb4 {[%emt 0:04:09]} 33. a3 {[%emt 0:00:21]} Na6 {[%emt 0:01:26]} 34. Ne5 {[%emt 0:00:41]} Nc7 {[%emt 0:04:18]} 35. Nc6 {[%emt 0:00:29]} Ra8 {[%emt 0:01:02]} 36. d5 {[%emt 0:00:18]} exd5 {[%emt 0:00:23]} 37. cxd5 {[%emt 0:00:03]} Kf8 {[%emt 0:05:14]} 38. d6 {[%emt 0:01:06]} Ne6 {[%emt 0:00:12]} 39. Rd5 {[%emt 0:00:30]} Rc8 {[%emt 0:01:09]} 40. Nb4 {[%emt 0:00:58]} Ke8 {[%emt 0:03:32]} 41. d7+ {[%emt 0:01:07]} Kf8 {[%emt 0:00:10]} 1-0

[Event "ONJK-C 2019"]
[Site "Borne"]
[Date "2019.08.07"]
[Round "4.5"]
[White "Wierenga, Jael"]
[Black "Neisingh, Nils"]
[Result "1/2-1/2"]
[ECO "A70"]
[WhiteElo "1469"]
[BlackElo "1710"]
[Annotator "NA"]
[PlyCount "49"]
[EventDate "2019.08.05"]
[EventType "swiss"]
[EventCountry "NED"]
[SourceTitle "playchess.com"]
[Source "ChessBase"]
[SourceQuality "1"]
[TimeControl "5400+30"]

1. d4 {[%emt 0:00:00]} Nf6 {[%emt 0:00:00]} 2. c4 {[%emt 0:00:00]} c5 {[%emt 0:00:00]} 3. d5 {[%emt 0:00:00]} e6 {[%emt 0:00:36]} 4. Nc3 {[%emt 0:00:00]} exd5 {[%emt 0:00:04]} 5. cxd5 {[%emt 0:00:00]} d6 {[%emt 0:00:03]} 6. e4 {[%emt 0:00:13]} g6 {[%emt 0:00:04]} 7. Nf3 {[%emt 0:01:02]} Bg7 {[%emt 0:00:07]} 8. g3 {[%emt 0:02:26]} O-O {[%emt 0:00:07]} 9. Bg2 {[%emt 0:00:09]} Re8 {[%emt 0:00:49]} 10. Nd2 {[%emt 0:09:14]} a6 {[%emt 0:01:06]} 11. a4 {[%emt 0:00:07]} Ng4 {[%emt 0:05:31]} 12. O-O {[%emt 0:02:42]} Qc7 {[%emt 0:12:57]} 13. Nc4 {[%emt 0:07:52]} Ne5 {[%emt 0:02:27]} 14. Qb3 {[%emt 0:02:50]} Nxc4 {[%emt 0:01:09]} 15. Qxc4 {[%emt 0:02:01]} Nd7 {[%emt 0:01:10]} 16. f4 {[%emt 0:09:48]} Nf6 {[%emt 0:10:42]} 17. h3 {[%emt 0:00:01]} Bd7 {[%emt 0:01:20]} 18. Bd2 {[%emt 0:02:48]} Qb6 {[%emt 0:08:17]} 19. Rab1 {[%emt 0:06:08]} Qb4 {[%emt 0:14:58]} 20. b3 {[%emt 0:11:03]} a5 {[%emt 0:19:24]} 21. Rfc1 {[%emt 0:04:53]} Rab8 {[%emt 0:03:04]} 22. Qe2 {[%emt 0:00:23]} Qb6 {[%emt 0:01:40]} 23. Re1 {[%emt 0:08:03]} Nh5 {[%emt 0:07:46]} 24. Qf3 {[%emt 0:00:02]} Bd4+ {[%emt 0:00:13]} 25. Kh1 {[%emt 0:00:03]} 1/2-1/2

[Event "ONJK-C 2019"]
[Site "Borne"]
[Date "2019.08.07"]
[Round "4.6"]
[White "De Vries, Fabian"]
[Black "Den Heijer, Rolinde"]
[Result "1-0"]
[ECO "D37"]
[WhiteElo "1704"]
[BlackElo "1471"]
[Annotator "NA"]
[PlyCount "67"]
[EventDate "2019.08.05"]
[EventType "swiss"]
[EventCountry "NED"]
[SourceTitle "playchess.com"]
[Source "ChessBase"]
[SourceQuality "1"]
[TimeControl "5400+30"]

1. d4 {[%emt 0:00:00]} Nf6 {[%emt 0:00:00]} 2. c4 {[%emt 0:00:00]} e6 {[%emt 0:00:00]} 3. Nc3 {[%emt 0:00:00]} d5 {[%emt 0:00:11]} 4. Nf3 {[%emt 0:00:00]} h6 {[%emt 0:00:45]} 5. Bf4 {[%emt 0:01:56]} Bb4 {[%emt 0:01:37]} 6. e3 {[%emt 0:02:43]} Ne4 {[%emt 0:03:30]} 7. Qa4+ {[%emt 0:08:02]} Nc6 {[%emt 0:04:19]} 8. Rc1 {[%emt 0:01:26]} O-O {[%emt 0:06:24]} 9. cxd5 {[%emt 0:03:50]} exd5 {[%emt 0:04:17]} 10. Bd3 {[%emt 0:01:44]} Bxc3+ {[%emt 0:03:34]} 11. bxc3 {[%emt 0:00:09]} Re8 {[%emt 0:06:34]} 12. O-O {[%emt 0:00:14]} Bg4 {[%emt 0:02:16]} 13. Ne5 {[%emt 0:09:24]} Nxe5 {[%emt 0:01:48]} 14. Bxe5 {[%emt 0:00:23]} Bd7 {[%emt 0:03:23]} 15. Qc2 {[%emt 0:06:55]} Qg5 {[%emt 0:10:53]} 16. Bf4 {[%emt 0:08:24]} Qd8 {[%emt 0:03:02]} 17. c4 {[%emt 0:05:24]} Bc6 {[%emt 0:06:03]} 18. Rfe1 {[%emt 0:05:51]} Nf6 {[%emt 0:04:43]} 19. f3 {[%emt 0:06:18]} Re7 {[%emt 0:02:15]} 20. Be5 {[%emt 0:09:41]} dxc4 {[%emt 0:04:38]} 21. Bxc4 {[%emt 0:02:27]} Nd7 {[%emt 0:02:57]} 22. Bg3 {[%emt 0:04:46]} Nb6 {[%emt 0:02:26]} 23. Bh4 {[%emt 0:01:43]} g5 {[%emt 0:01:09]} 24. Qg6+ {[%emt 0:00:49]} Kf8 {[%emt 0:01:23]} 25. Qxh6+ {[%emt 0:00:16]} Ke8 {[%emt 0:00:29]} 26. Bxg5 {[%emt 0:01:58]} Nxc4 {[%emt 0:02:18]} 27. Bxe7 {[%emt 0:01:19]} Kxe7 {[%emt 0:01:17]} 28. Qg5+ {[%emt 0:01:13]} f6 {[%emt 0:00:55]} 29. Qg7+ {[%emt 0:00:17]} Ke6 {[%emt 0:00:35]} 30. Rxc4 {[%emt 0:00:25]} Qd5 {[%emt 0:01:35]} 31. Rec1 {[%emt 0:01:18]} Kd6 {[%emt 0:00:34]} 32. Qxf6+ {[%emt 0:00:29]} Kd7 {[%emt 0:00:24]} 33. e4 {[%emt 0:00:40]} Qh5 {[%emt 0:02:51]} 34. Rxc6 {[%emt 0:01:43] Ke7} 1-0